bitfinex/quotes_SOLUSD_20220207
["timestamp","ask_amount","ask_price","bid_price","bid_amount"]
[1644250597712,41.75481213,121.25,121.15,46.2672]
[1644250597913,1.16039184,121.24,121.14,11.92]
[1644250598336,1.16039184,121.24,121.12,11.92]
[1644250598635,1.19659088,121.23,121.13,23.0642]
[1644250598835,42.54066576,121.23,121.14,14.94991177]
[1644250599036,41.38027392,121.23,121.14,14.94991177]
[1644250599237,41.38027392,121.23,121.14,15.19991177]
[1644250599436,1.19659088,121.24,121.14,15.19991177]
[1644250599938,1.19659088,121.24,121.14,33.11991177]
[1644250600136,1.19659088,121.24,121.15,45.4554]
[1644250600338,1.19659088,121.24,121.15,45.7054]
[1644250600537,45.77278604,121.24,121.16,3.71048179]
[1644250600738,6.0,121.24,121.16,3.96048179]
[1644250601537,1.19659088,121.25,121.16,3.96048179]
[1644250601737,6.0,121.25,121.16,3.96048179]
[1644250601936,49.96264494,121.26,121.16,3.96048179]
[1644250602137,8.29439088,121.26,121.16,3.96048179]
[1644250602339,7.13399904,121.26,121.16,15.88048179]
[1644250602541,1.13399904,121.26,121.16,21.88048179]
[1644250602739,1.13399904,121.26,121.17,23.868]
[1644250602938,1.13399904,121.26,121.18,11.92]
[1644250603139,7.13399904,121.26,121.17,35.788]
[1644250603338,2.29439088,121.26,121.17,23.868]
[1644250603542,8.25819184,121.26,121.17,23.868]
[1644250603740,1.16039184,121.25,121.17,23.868]
[1644250603940,39.70082877,121.24,121.17,23.868]
[1644250604144,39.70082877,121.24,121.15,39.0888415]
[1644250604341,39.70082877,121.24,121.15,45.0888415]
[1644250604942,39.70082877,121.24,121.15,41.2034]
[1644250605747,40.86122061,121.24,121.15,28.8233]
[1644250605948,40.86122061,121.24,121.16,6.06899]
[1644250606145,40.86122061,121.24,121.16,12.06899]
[1644250607753,1.16039184,121.23,121.16,6.06899]
[1644250608447,35.06963634,121.22,121.16,6.06899]
[1644250608647,44.05063634,121.22,121.16,6.06899]
[1644250609747,45.21102818,121.22,121.16,6.06899]
[1644250611650,36.23002818,121.22,121.16,6.06899]
[1644250611849,35.73002818,121.22,121.16,6.06899]
[1644250612449,35.73002818,121.22,121.14,23.4146]
[1644250613351,34.56963634,121.22,121.14,41.49201368]
[1644250613550,34.56963634,121.22,121.14,23.4146]
[1644250614652,35.73002818,121.22,121.14,23.4146]
[1644250615052,35.73002818,121.22,121.11,47.4617]
[1644250615255,41.73002818,121.22,121.11,47.7117]
[1644250615456,41.73002818,121.22,121.11,47.4617]
[1644250615852,41.73002818,121.22,121.12,23.8376]
[1644250616651,40.56963634,121.22,121.12,23.8376]
[1644250616853,40.56963634,121.22,121.12,29.90859]
[1644250617052,41.73002818,121.22,121.12,29.90859]
[1644250618858,1.16039184,121.21,121.12,6.07099]
[1644250619059,4.126,121.2,121.12,6.07099]
[1644250619360,39.98237112,121.19,121.12,6.07099]
[1644250620363,39.98237112,121.19,121.07,60.6723]
[1644250620364,41.14276296,121.19,121.07,48.2832]
[1644250620568,41.14276296,121.19,121.08,6.073]
[1644250621166,53.06276296,121.19,121.08,6.073]
[1644250621566,2.14682857,121.18,121.08,6.073]
[1644250621865,2.14682857,121.18,121.06,113.1]
[1644250621866,17.20739184,121.17,121.03,1.14126756]
[1644250622065,17.20739184,121.17,121.03,1.80579205]
[1644250622066,39.90386809,121.16,121.03,1.80579205]
[1644250622265,39.90386809,121.16,121.02,22.596]
[1644250622266,11.92,121.15,121.02,22.596]
[1644250622467,39.37659423,121.14,121.02,22.596]
[1644250622666,52.45698607,121.14,121.02,22.596]
[1644250622866,57.29659423,121.14,121.02,22.596]
[1644250623566,69.69479423,121.14,121.02,22.596]
[1644250623766,71.8416228,121.14,121.02,22.596]
[1644250624590,71.8416228,121.14,120.99,24.81559205]
[1644250624788,123.27201464,121.14,120.99,23.0098]
[1644250624989,150.21039184,121.13,120.97,24.406]
[1644250625190,12.4027,121.1,120.97,24.406]
[1644250625389,16.051,121.09,120.97,24.406]
[1644250625592,59.81302161,121.09,120.97,24.406]
[1644250625789,59.81302161,121.09,120.95,0.024]
[1644250626188,61.95985018,121.09,120.95,0.024]
[1644250626389,67.95985018,121.09,120.95,0.024]
[1644250627190,67.95985018,121.09,120.95,24.7748]
[1644250628890,67.95985018,121.09,120.95,0.024]
[1644250630094,118.22985018,121.09,120.95,0.024]
[1644250630591,281.44417402,121.09,120.95,0.024]
[1644250630995,36.87978308,121.07,120.93,0.024]
[1644250631192,16.052,121.06,120.91,0.024]
[1644250631391,16.052,121.06,120.93,0.024]
[1644250631595,16.052,121.06,120.94,0.024]
[1644250631993,22.052,121.06,120.91,36.7311]
[1644250632193,41.30562933,121.05,120.92,13.85040087]
[1644250632394,53.22562933,121.05,120.94,7.13978486]
[1644250632793,53.22562933,121.05,120.94,1.80579217]
[1644250632996,53.22562933,121.05,120.95,0.024]
[1644250634096,59.22562933,121.05,120.95,0.024]
[1644250634697,59.22562933,121.05,120.94,0.024]
[1644250635298,59.22562933,121.05,120.94,1.82979217]
[1644250635499,59.22562933,121.05,120.95,0.024]
[1644250637500,47.30562933,121.05,120.95,1.82979217]
[1644250638301,47.30562933,121.05,120.95,14.23149217]
[1644250638504,47.30562933,121.05,120.95,0.024]
[1644250638703,2.14682857,121.04,120.95,0.024]
[1644250638903,2.14682857,121.04,120.94,47.6566]
[1644250639304,44.2721564,121.03,120.94,47.6566]
[1644250639903,50.2721564,121.03,120.94,47.6566]
[1644250640303,50.2721564,121.03,120.94,0.024]
[1644250640506,50.2721564,121.03,120.91,0.024]
[1644250640805,62.1921564,121.03,120.94,0.024]
[1644250641007,74.6008564,121.03,120.91,0.024]
[1644250641406,62.1921564,121.03,120.92,1.80579217]
[1644250641604,62.1921564,121.03,120.93,0.024]
[1644250642405,62.1921564,121.03,120.91,0.024]
[1644250642807,70.2601564,121.03,120.91,0.024]
[1644250643707,82.6687564,121.03,120.91,0.024]
[1644250644106,4.133,121.02,120.91,0.024]
[1644250644307,16.053,121.02,120.91,0.024]
[1644250644711,43.78850551,121.01,120.91,0.024]
[1644250645612,56.19940551,121.01,120.91,0.024]
[1644250646012,68.11940551,121.01,120.91,0.024]
[1644250646614,55.70850551,121.01,120.91,0.024]
[1644250647212,55.70850551,121.01,120.91,1.83488853]
[1644250647412,55.70850551,121.01,120.92,14.47158173]
[1644250647615,43.78850551,121.01,120.92,14.49558173]
[1644250647813,43.78850551,121.01,120.92,16.55647026]
[1644250648014,43.78850551,121.01,120.93,1.81088853]
[1644250648213,43.78850551,121.01,120.94,4.68881183]
[1644250648413,43.78850551,121.01,120.93,1.83488853]
[1644250648617,43.78850551,121.01,120.93,1.81088853]
[1644250648815,49.78850551,121.01,120.93,12.4042]
[1644250649217,49.78850551,121.01,120.92,24.6624]
[1644250649921,49.78850551,121.01,120.92,26.47328853]
[1644250651250,49.78850551,121.01,120.92,26.72328853]
[1644250651547,49.78850551,121.01,120.92,38.87858853]
[1644250651746,49.78850551,121.01,120.92,39.12858853]
[1644250652846,49.78850551,121.01,120.92,38.87858853]
[1644250653048,49.78850551,121.01,120.92,26.47328853]
[1644250653250,49.78850551,121.01,120.92,0.024]
[1644250653457,49.78850551,121.01,120.91,0.024]
[1644250653649,61.70850551,121.01,120.91,0.024]
[1644250653863,73.03750551,121.01,120.91,0.024]
[1644250654253,79.21795551,121.01,120.91,0.024]
[1644250654550,67.88895551,121.01,120.91,0.024]
[1644250655150,55.96895551,121.01,120.91,0.024]
[1644250655353,55.96895551,121.01,120.91,24.9087]
[1644250655550,55.96895551,121.01,120.92,4.28559495]
[1644250655851,12.18045,121.01,120.92,4.55959495]
[1644250656052,12.18045,121.01,120.93,1.81088853]
[1644250656454,12.18045,121.01,120.92,4.30959495]
[1644250656852,44.04380931,121.0,120.92,4.30959495]
[1644250657052,5.26641919,120.99,120.92,16.69119495]
[1644250657252,5.26641919,120.99,120.92,12.4056]
[1644250657454,5.26641919,120.99,120.91,38.63958853]
[1644250657652,5.26641919,120.99,120.91,38.88958853]
[1644250658054,5.26641919,120.99,120.91,37.0787]
[1644250658257,47.18909311,120.98,120.91,24.9087]
[1644250658457,47.18909311,120.98,120.91,24.8847]
[1644250659457,47.18909311,120.98,120.9,1.14126756]
[1644250659858,2.14682857,120.97,120.88,0.024]
[1644250660061,18.20082857,120.97,120.89,0.024]
[1644250660259,18.20082857,120.97,120.87,0.21220808]
[1644250660461,36.38409933,120.96,120.87,0.21220808]
[1644250660660,36.38409933,120.96,120.87,0.18820808]
[1644250660860,56.4509279,120.96,120.87,0.18820808]
[1644250661461,54.30409933,120.96,120.87,0.18820808]
[1644250662162,56.4509279,120.96,120.87,0.18820808]
[1644250664463,54.30409933,120.96,120.87,0.18820808]
[1644250665864,54.30409933,120.96,120.86,0.37641616]
[1644250666066,54.30409933,120.96,120.86,0.62641616]
[1644250666265,54.30409933,120.96,120.86,0.37641616]
[1644250670097,54.30409933,120.96,120.86,12.78871616]
[1644250670295,54.30409933,120.96,120.87,12.88797077]
[1644250670495,42.38409933,120.96,120.87,12.88797077]
[1644250670898,2.14682857,121.0,120.87,12.88797077]
[1644250671096,17.21439184,121.03,120.87,39.27904917]
[1644250671297,6.18045,121.02,120.88,49.5887]
[1644250671498,6.18045,121.02,120.89,11.92]
[1644250671696,6.18045,121.02,120.89,15.12124596]
[1644250671898,40.20636077,121.01,120.9,26.5288784]
[1644250672100,40.20636077,121.01,120.91,12.4065]
[1644250672299,4.133,121.04,120.91,14.4664784]
[1644250672497,6.18045,121.04,120.92,47.707]
[1644250672698,6.18045,121.04,120.92,67.6869784]
[1644250672897,6.18045,121.04,120.93,41.3376]
[1644250673100,6.18045,121.04,120.92,59.627]
[1644250673302,100.39342688,121.03,120.89,11.92]
[1644250673501,16.053,121.02,120.88,14.48854196]
[1644250673699,40.07114063,121.01,120.89,24.9063]
[1644250673899,64.40114063,121.01,120.89,24.9063]
[1644250674100,40.07114063,121.01,120.89,24.9063]
[1644250674307,40.07114063,121.01,120.89,37.3154]
[1644250674708,40.07114063,121.01,120.9,11.92]
[1644250675502,46.25159063,121.01,120.91,12.4066]
[1644250675703,6.18045,121.01,120.91,35.5103]
[1644250675904,6.18045,121.01,120.92,11.92]
[1644250676105,6.18045,121.01,120.92,19.72528475]
[1644250676304,6.18045,121.01,120.93,1.80528475]
[1644250676510,6.18045,121.01,120.94,12.401]
[1644250676716,36.70898215,121.0,120.94,12.401]
[1644250676910,6.18045,121.0,120.94,12.401]
[1644250677912,45.18413261,121.0,120.92,47.1558]
[1644250678112,51.18413261,121.0,120.92,47.1558]
[1644250678319,51.18413261,121.0,120.92,46.9058]
[1644250678512,51.18413261,121.0,120.92,34.9858]
[1644250679316,45.00368261,121.0,120.92,34.9858]
[1644250679714,45.00368261,121.0,120.92,35.2358]
[1644250680213,45.00368261,121.0,120.91,22.8537]
[1644250680214,86.0,120.99,120.87,1.80528475]
[1644250680428,64.0,120.98,120.87,3.54875676]
[1644250680624,13.56882857,120.99,120.85,0.50432736]
[1644250680820,1.16039184,120.97,120.85,0.50432736]
[1644250681017,160.97,120.96,120.85,0.50432736]
[1644250681217,149.05,120.95,120.85,0.50432736]
[1644250681415,149.05,120.93,120.85,0.50432736]
[1644250681617,269.105,120.92,120.79,0.2061282]
[1644250681817,120.055,120.92,120.79,0.2061282]
[1644250682015,151.19682857,120.91,120.85,0.024]
[1644250682226,119.4241,120.9,120.79,0.2061282]
[1644250682419,4.136,120.89,120.79,0.2061282]
[1644250682621,41.4172,120.87,120.79,0.2061282]
[1644250683016,45.5552,120.87,120.79,0.2061282]
[1644250683315,11.92,120.86,120.79,0.2061282]
[1644250683918,24.3452,120.86,120.79,0.2061282]
[1644250684917,12.4203,120.88,120.79,0.2061282]
[1644250685222,16.056,120.91,120.79,43.8244741]
[1644250685822,11.92,120.91,120.8,1.80680868]
[1644250686217,30.3377,120.91,120.79,0.2061282]
[1644250686617,24.3377,120.91,120.79,0.2061282]
[1644250688018,24.3377,120.91,120.79,12.6239282]
[1644250688241,24.3377,120.91,120.8,39.20267489]
[1644250689219,30.3377,120.91,120.8,39.20267489]
[1644250689921,30.3377,120.91,120.8,41.00948357]
[1644250690722,6.0,120.91,120.8,59.42608357]
[1644250691125,11.92,120.95,120.8,59.42608357]
[1644250691322,6.18045,120.94,120.8,59.67608357]
[1644250691722,6.18045,120.94,120.8,53.67608357]
[1644250692926,6.18045,120.94,120.81,11.92]
[1644250693133,6.18045,120.94,120.82,42.94474899]
[1644250693323,6.18045,120.94,120.85,48.16094727]
[1644250694523,18.59495,120.94,120.85,48.16094727]
[1644250695744,24.59495,120.94,120.85,48.16094727]
[1644250696523,18.4145,120.94,120.85,48.16094727]
[1644250697724,18.4145,120.94,120.85,48.18494727]
[1644250698327,12.4145,120.94,120.85,48.18494727]
[1644250698524,12.4145,120.94,120.85,0.024]
[1644250698825,22.3545,120.94,120.82,0.024]
[1644250699424,22.3545,120.94,120.8,13.16060368]
[1644250699625,28.3545,120.94,120.82,46.21748223]
[1644250701425,12.4177,120.91,120.82,46.21748223]
[1644250701628,6.18045,120.9,120.82,46.21748223]
[1644250703129,18.84915,120.9,120.82,46.21748223]
[1644250703925,24.84915,120.9,120.82,46.21748223]
[1644250704125,18.6687,120.9,120.82,46.21748223]
[1644250706330,24.84915,120.9,120.82,46.21748223]
[1644250706533,6.18045,120.9,120.82,48.01961013]
[1644250706731,6.18045,120.9,120.82,54.26961013]
[1644250707031,53.58479184,120.99,120.83,9.94]
[1644250707231,6.18045,120.98,120.84,40.28531871]
[1644250707532,6.18045,120.98,120.84,52.02744661]
[1644250707731,6.18045,120.98,120.86,37.42452642]
[1644250708131,6.18045,120.98,120.88,42.81936575]
[1644250708340,12.18045,120.98,120.88,43.06936575]
[1644250708532,6.18045,120.98,120.88,55.47806575]
[1644250708731,6.25,120.98,120.88,42.81936575]
[1644250708934,6.25,120.98,120.84,11.7421279]
[1644250709132,7.41039184,120.98,120.84,1.8021279]
[1644250709332,24.1491,120.97,120.84,2.0521279]
[1644250709832,25.30949184,120.97,120.85,45.02293964]
[1644250710032,37.72169184,120.97,120.85,57.43453964]
[1644250710233,37.72169184,120.97,120.85,57.68453964]
[1644250710433,37.72169184,120.97,120.85,14.2137279]
[1644250710633,1.16039184,120.94,120.82,1.15343318]
[1644250710861,15.23639184,120.93,120.79,1.35956138]
[1644250711059,17.38322041,120.93,120.79,0.2061282]
[1644250711258,12.4192,120.9,120.79,0.2061282]
[1644250711458,12.4192,120.9,120.79,41.0652364]
[1644250711660,12.4192,120.9,120.79,42.21866958]
[1644250711859,18.4192,120.9,120.79,42.21866958]
[1644250712058,18.4192,120.9,120.79,41.0652364]
[1644250712459,18.6692,120.9,120.79,41.0652364]
[1644250712659,18.6692,120.9,120.79,41.3152364]
[1644250712862,6.25,120.9,120.79,42.8673643]
[1644250713158,0.25,120.9,120.79,50.02079748]
[1644250713360,6.25,120.9,120.81,45.43569415]
[1644250713558,6.0,120.9,120.81,45.43569415]
[1644250713758,0.25,120.9,120.82,1.8075835]
[1644250714058,0.25,120.9,120.83,37.2385493]
[1644250714258,6.0,120.92,120.83,37.2385493]
[1644250714459,1.41039184,120.94,120.83,37.2385493]
[1644250714657,1.41039184,120.94,120.83,37.2625493]
[1644250714859,7.41039184,120.94,120.83,37.2625493]
[1644250715259,6.25,120.94,120.84,1.8075835]
[1644250715460,6.0,120.94,120.85,38.15772139]
[1644250715660,1.16039184,120.95,120.85,38.15772139]
[1644250715866,1.16039184,120.95,120.85,38.18172139]
[1644250716261,1.16039184,120.96,120.85,38.18172139]
[1644250716461,1.16039184,120.96,120.86,0.024]
[1644250717061,12.4125,120.95,120.86,0.024]
[1644250717263,12.6625,120.95,120.86,0.024]
[1644250717464,13.82289184,120.95,120.85,38.15772139]
[1644250718468,13.82289184,120.95,120.83,0.024]
[1644250718766,12.4162,120.91,120.83,0.024]
[1644250718966,12.4162,120.91,120.8,2.98501668]
[1644250719166,1.16039184,120.94,120.8,2.98501668]
[1644250719365,1.16039184,120.93,120.81,0.024]
[1644250719565,1.16039184,120.93,120.81,39.22837229]
[1644250719767,1.16039184,120.93,120.82,0.024]
[1644250719965,13.57519184,120.93,120.82,0.024]
[1644250720166,29.51519184,120.93,120.82,0.024]
[1644250720368,1.16039184,120.92,120.82,0.024]
[1644250720567,26.52439184,120.92,120.82,0.024]
[1644250720768,11.10039184,120.92,120.8,0.024]
[1644250720970,9.94,120.92,120.8,1.17743318]
[1644250721170,12.4192,120.89,120.81,44.0867527]
[1644250721371,12.4192,120.89,120.81,44.0627527]
[1644250721570,12.4192,120.89,120.8,0.024]
[1644250721770,12.4192,120.89,120.79,0.2061282]
[1644250722173,13.57959184,120.89,120.79,0.2061282]
[1644250722770,12.4192,120.89,120.79,0.2061282]
[1644250723873,22.3592,120.89,120.79,0.2061282]
[1644250724672,24.50602857,120.89,120.79,0.2061282]
[1644250724872,25.66642041,120.89,120.79,0.2061282]
[1644250725073,12.4255,120.86,120.79,0.2061282]
[1644250725272,9.94,120.85,120.79,0.2061282]
[1644250725672,12.08682857,120.85,120.79,0.2061282]
[1644250725873,2.14682857,120.84,120.79,0.0061282]
[1644250726076,14.078,120.83,120.79,0.0061282]
[1644250726274,46.7236,120.82,120.79,0.0061282]
[1644250726474,16.00439994,120.81,120.79,0.0061282]
[1644250727374,22.00439994,120.81,120.79,0.0061282]
[1644250727573,12.4303,120.8,120.79,0.0061282]
[1644250727773,22.3703,120.8,120.79,0.0061282]
[1644250727973,12.4303,120.8,120.79,0.0061282]
[1644250729674,12.6803,120.8,120.79,0.0061282]
[1644250730778,12.4303,120.8,120.79,0.0061282]
[1644250731079,18.4303,120.8,120.79,0.4061282]
[1644250732977,28.6203,120.8,120.79,0.4061282]
[1644250733581,28.6203,120.8,120.73,0.024]
[1644250733777,28.6203,120.8,120.72,35.18395592]
[1644250733977,28.6203,120.8,120.69,0.024]
[1644250734980,28.6203,120.8,120.69,45.09838816]
[1644250735179,28.6203,120.8,120.7,0.024]
[1644250735779,28.6203,120.8,120.7,1.8315835]
[1644250735981,28.6203,120.8,120.71,43.16548877]
[1644250736481,28.6203,120.8,120.71,43.18948877]
[1644250736681,28.6203,120.8,120.71,43.16548877]
[1644250737282,6.25,120.8,120.71,44.97307227]
[1644250737484,6.25,120.8,120.71,43.16548877]
[1644250737682,56.6636,120.82,120.71,43.16548877]
[1644250738282,98.0899,120.82,120.71,55.59218877]
[1644250738983,4.14,120.84,120.71,55.59218877]
[1644250739185,9.94,120.84,120.72,1.8315835]
[1644250739387,48.4855,120.87,120.75,12.4213]
[1644250739586,4.138,120.89,120.76,43.18114453]
[1644250739785,4.138,120.89,120.76,44.98872803]
[1644250740188,4.138,120.89,120.77,1.8075835]
[1644250740389,12.4181,120.9,120.78,89.38853294]
[1644250740587,12.4181,120.9,120.79,0.024]
[1644250740786,12.4181,120.9,120.79,1.8315835]
[1644250740988,12.4181,120.9,120.8,47.87767194]
[1644250741190,18.4181,120.9,120.81,12.4165]
[1644250741392,18.4181,120.9,120.81,12.4405]
[1644250741589,28.3581,120.9,120.8,0.024]
[1644250741989,2.14682857,120.89,120.76,0.024]
[1644250742190,12.421,120.87,120.76,12.4456]
[1644250742386,12.421,120.87,120.77,44.22087159]
[1644250742587,12.421,120.87,120.77,44.24487159]
[1644250742789,12.421,120.87,120.77,44.22087159]
[1644250743589,23.8626,120.88,120.77,58.44935509]
[1644250743791,23.8626,120.88,120.77,58.47335509]
[1644250744990,29.8626,120.88,120.77,58.47335509]
[1644250745391,42.2819,120.88,120.77,58.47335509]
[1644250745790,18.4193,120.88,120.77,58.47335509]
[1644250745990,6.0,120.88,120.77,58.47335509]
[1644250746191,52.49439184,120.92,120.77,58.47335509]
[1644250746392,6.0,120.88,120.78,0.024]
[1644250746595,6.0,120.88,120.81,12.4163]
[1644250746891,13.57629184,120.92,120.82,42.91262324]
[1644250747091,1.16039184,120.92,120.82,42.91262324]
[1644250747292,7.16039184,120.92,120.82,42.91262324]
[1644250747493,6.0,120.92,120.82,42.91262324]
[1644250747692,1.16039184,120.93,120.82,63.13560674]
[1644250747894,6.0,120.92,120.82,63.13560674]
[1644250748292,1.16039184,120.93,120.82,63.13560674]
[1644250748494,1.16039184,120.93,120.82,55.32802324]
[1644250748693,13.57569184,120.92,120.82,55.32802324]
[1644250749196,12.4153,120.92,120.82,55.32802324]
[1644250750793,7.16039184,120.93,120.84,41.93397052]
[1644250750997,6.0,120.93,120.86,47.82880881]
[1644250751295,7.16039184,120.93,120.86,47.82880881]
[1644250751495,37.60119184,120.94,120.86,47.82880881]
[1644250751696,43.60119184,120.94,120.86,47.82880881]
[1644250752494,6.0,120.94,120.86,60.24060881]
[1644250752693,1.16039184,120.95,120.86,60.24060881]
[1644250753092,37.02939184,120.96,120.86,60.24060881]
[1644250753292,24.61849184,120.96,120.86,62.04819231]
[1644250753792,24.61849184,120.96,120.86,60.24060881]
[1644250753793,1.16039184,120.95,120.86,60.24060881]
[1644250753993,1.16039184,120.95,120.86,47.82880881]
[1644250754393,1.16039184,120.95,120.84,12.4131]
[1644250755293,11.10039184,120.95,120.84,12.4131]
[1644250755493,11.10039184,120.95,120.84,56.45693638]
[1644250756094,12.4134,120.93,120.84,56.45693638]
[1644250756295,7.16039184,120.95,120.84,58.26451988]
[1644250756497,6.0,120.95,120.84,58.26451988]
[1644250756696,48.0356,120.96,120.84,74.20451988]
[1644250756895,54.0356,120.96,120.84,74.20451988]
[1644250757098,54.0356,120.96,120.84,68.20451988]
[1644250757899,66.4459,120.96,120.84,68.20451988]
[1644250758601,67.60629184,120.96,120.84,66.39693638]
[1644250758798,67.60629184,120.96,120.84,56.45693638]
[1644250759704,66.4459,120.96,120.84,58.26451988]
[1644250760202,66.4459,120.96,120.84,56.45693638]
[1644250760401,67.60629184,120.96,120.84,56.45693638]
[1644250761402,67.60629184,120.96,120.84,12.4131]
[1644250761601,12.4172,120.92,120.79,0.024]
[1644250761802,59.1651,120.92,120.79,0.024]
[1644250762004,15.23722041,120.91,120.79,0.024]
[1644250762405,13.09039184,120.91,120.79,49.79961004]
[1644250762705,12.4164,120.9,120.79,62.21831004]
[1644250762907,12.4164,120.9,120.79,66.41072654]
[1644250763105,11.93,120.89,120.79,66.41072654]
[1644250763304,11.93,120.89,120.79,68.19431004]
[1644250763506,11.93,120.89,120.79,62.19431004]
[1644250765007,12.4186,120.88,120.79,60.38672654]
[1644250765207,12.4186,120.88,120.79,62.19431004]
[1644250765612,18.4186,120.88,120.79,60.38672654]
[1644250766013,6.0,120.88,120.8,1.8075835]
[1644250766214,1.16039184,120.92,120.83,12.4143]
[1644250766413,1.16039184,120.93,120.84,36.58381632]
[1644250766715,6.0,120.92,120.84,36.58381632]
[1644250767138,11.10039184,120.93,120.84,36.58381632]
[1644250767338,6.0,120.92,120.84,36.58381632]
[1644250767535,9.94,120.91,120.84,36.58381632]
[1644250768138,11.10039184,120.91,120.84,36.58381632]
[1644250769039,12.4181,120.89,120.84,36.58381632]
[1644250772039,19.57619184,120.91,120.84,36.58381632]
[1644250772241,6.0,120.91,120.84,38.39139982]
[1644250772442,1.16039184,120.92,120.84,38.39139982]
[1644250772640,1.16039184,120.93,120.84,38.39139982]
[1644250772842,1.16039184,120.92,120.84,36.58381632]
[1644250773241,42.55039184,120.92,120.84,36.58381632]
[1644250773841,1.16039184,120.91,120.84,36.58381632]
[1644250774241,12.4176,120.89,120.84,36.58381632]
[1644250774642,12.4176,120.89,120.8,0.024]
[1644250774841,12.4176,120.89,120.78,0.024]
[1644250775544,12.4176,120.89,120.78,44.20784922]
[1644250775742,13.57799184,120.89,120.79,0.024]
[1644250775942,13.57799184,120.89,120.79,12.4425]
[1644250776143,13.57799184,120.89,120.8,45.10725434]
[1644250776345,12.4176,120.89,120.8,45.10725434]
[1644250776544,12.4176,120.89,120.8,45.13125434]
[1644250776744,19.57799184,120.89,120.8,45.13125434]
[1644250776944,1.16039184,120.88,120.8,45.13125434]
[1644250777246,12.4196,120.87,120.8,45.10725434]
[1644250777444,12.4196,120.87,120.8,45.13125434]
[1644250777648,12.4196,120.87,120.8,45.10725434]
[1644250777854,22.1096,120.87,120.78,0.024]
[1644250778047,3.30722041,120.86,120.77,0.024]
[1644250778246,12.4256,120.84,120.77,0.024]
[1644250778446,9.94,120.83,120.71,1.15343318]
[1644250778645,47.319,120.82,120.73,0.024]
[1644250778846,57.259,120.82,120.72,45.64118418]
[1644250780046,12.4282,120.8,120.72,45.64118418]
[1644250783949,18.4282,120.8,120.72,45.64118418]
[1644250784350,6.0,120.8,120.72,58.06728418]
[1644250784748,9.94,120.84,120.72,58.06728418]
[1644250784950,9.94,120.86,120.73,0.024]
[1644250785152,48.7539,120.87,120.73,0.024]
[1644250785354,48.7539,120.87,120.77,47.35463136]
[1644250785649,12.4208,120.86,120.77,47.37863136]
[1644250785851,12.4208,120.86,120.77,47.35463136]
[1644250786750,12.4208,120.86,120.77,59.77503136]
[1644250788251,18.4208,120.86,120.77,59.77503136]
[1644250790152,12.4208,120.86,120.77,59.77503136]
[1644250790353,61.1727,120.87,120.77,59.77503136]
[1644250791153,79.80279184,120.9,120.77,77.50584938]
[1644250791353,13.57619184,120.9,120.78,0.024]
[1644250791567,1.16039184,120.91,120.81,12.4144]
[1644250791756,0.66039184,120.92,120.82,42.48941736]
[1644250791955,49.00709184,120.93,120.82,44.28023538]
[1644250792558,12.4146,120.92,120.82,44.28023538]
[1644250792758,12.4146,120.92,120.85,38.54667584]
[1644250793159,6.66039184,120.93,120.85,38.54667584]
[1644250793356,12.84084184,120.93,120.85,38.54667584]
[1644250794355,12.18045,120.93,120.85,38.54667584]
[1644250794656,6.18045,120.93,120.85,61.08837584]
[1644250795857,6.18045,120.93,120.85,50.95937584]
[1644250796056,12.18045,120.93,120.85,56.95937584]
[1644250796256,12.18045,120.93,120.85,50.95937584]
[1644250796456,12.43045,120.93,120.85,50.95937584]
[1644250796659,24.84365,120.93,120.83,12.4144]
[1644250796858,24.84365,120.93,120.79,33.9593]
[1644250796859,2.14682857,120.92,120.79,33.9593]
[1644250797061,9.94,120.91,120.79,0.024]
[1644250797261,27.283,120.9,120.74,11.73081802]
[1644250797463,9.94,120.89,120.75,0.024]
[1644250797661,9.94,120.89,120.76,41.47544273]
[1644250797961,9.94,120.89,120.77,0.024]
[1644250798562,9.94,120.89,120.78,38.3710202]
[1644250798761,22.3591,120.89,120.79,12.4187]
[1644250798962,22.3591,120.89,120.8,40.73708571]
[1644250799361,22.3591,120.89,120.8,40.76108571]
[1644250800865,12.4191,120.89,120.8,53.17918571]
[1644250801062,23.147,120.9,120.8,67.63800373]